fUST/lending_fUST_20250724
["ID","MTS","AMOUNT","RATE_DAILY","PERIOD"]
[374523502,1753335046254,-460.0,0.00019726,2]
[374523503,1753335046263,-498.23,0.00019726,2]
[374523504,1753335046272,-460.0,0.00019726,2]
[374523505,1753335046281,-3862.97,0.00019726,2]
[374523506,1753335046290,-203.33241345,0.00019969,2]
[374523507,1753335046300,-460.0,0.0002,2]
[374523508,1753335046310,-460.0,0.0002,2]
[374523509,1753335046320,-460.0,0.0002,2]
[374523510,1753335046329,-460.0,0.0002,2]
[374523511,1753335046339,-460.0,0.0002,2]
[374523512,1753335046348,-460.0,0.0002,2]
[374523513,1753335046358,-180.01716256,0.0002,2]
[374523514,1753335046367,-460.0,0.0002,2]
[374523515,1753335046377,-460.0,0.0002,2]
[374523516,1753335046387,-460.0,0.0002,2]
[374523517,1753335046396,-460.0,0.0002,2]
[374523518,1753335046406,-476.08619812,0.0002,2]
[374523519,1753335046415,-267.0868317,0.0002,2]
[374523520,1753335046425,-460.0,0.0002,2]
[374523521,1753335046434,-460.0,0.0002,2]
[374523522,1753335046444,-2118.55,0.0002,2]
[374523523,1753335046453,-460.0,0.0002,2]
[374523524,1753335046465,-460.0,0.0002,2]
[374523525,1753335046474,-460.0,0.0002,2]
[374523526,1753335046484,-460.0,0.0002,2]
[374523527,1753335046493,-460.0,0.0002,2]
[374523528,1753335046599,-460.0,0.0002,2]
[374523529,1753335046609,-460.0,0.0002,2]
[374523530,1753335046619,-460.0,0.0002,2]
[374523531,1753335046630,-460.0,0.0002,2]
[374523532,1753335046639,-460.0,0.0002,2]
[374523533,1753335046649,-1221.43,0.0002,2]
[374523534,1753335046658,-460.0,0.0002,2]
[374523535,1753335046667,-462.90058989,0.0002,2]
[374523536,1753335046677,-460.0,0.0002,2]
[374523537,1753335046686,-460.0,0.0002,2]
[374523538,1753335046695,-460.0,0.0002,2]
[374523539,1753335046711,-460.0,0.0002,2]
[374523540,1753335046725,-460.0,0.0002,2]
[374523541,1753335046734,-460.0,0.0002,2]
[374523542,1753335046744,-460.0,0.0002,2]
[374523543,1753335046753,-154.88,0.0002,2]
[374523544,1753335046762,-542.71,0.0002,2]
[374523545,1753335046771,-460.0,0.0002,2]
[374523546,1753335046780,-460.0,0.0002,2]
[374523547,1753335046789,-460.0,0.0002,2]
[374523548,1753335046799,-992.07,0.0002,2]
[374523549,1753335046808,-460.0,0.0002,2]
[374523550,1753335046817,-1240.35,0.0002,2]
[374523551,1753335046826,-460.0,0.0002,2]
[374523552,1753335046835,-1663.04,0.0002,2]
[374523553,1753335046844,-460.0,0.0002,2]
[374523554,1753335046853,-507.84,0.0002,2]
[374523555,1753335046862,-460.0,0.0002,2]
[374523556,1753335046872,-460.0,0.0002,2]
[374523557,1753335046882,-460.0,0.0002,2]
[374523558,1753335046891,-1077.78,0.0002,2]
[374523559,1753335046899,-460.0,0.0002,2]
[374523560,1753335046908,-606.01,0.0002,2]
[374523561,1753335046918,-460.0,0.0002,2]
[374523562,1753335046927,-460.0,0.0002,2]
[374523563,1753335046936,-460.0,0.0002,2]
[374523564,1753335046945,-653.62,0.0002,2]
[374523565,1753335046954,-460.0,0.0002,2]
[374523566,1753335046964,-1678.08,0.0002,2]
[374523567,1753335046973,-460.0,0.0002,2]
[374523568,1753335046982,-460.0,0.0002,2]
[374523569,1753335046995,-460.0,0.0002,2]
[374523570,1753335047004,-460.0,0.0002,2]
[374523571,1753335047014,-460.0,0.0002,2]
[374523572,1753335047023,-829.12,0.0002,2]
[374523573,1753335047033,-460.0,0.0002,2]
[374523574,1753335047043,-460.0,0.0002,2]
[374523575,1753335047053,-1553.75,0.0002,2]
[374523576,1753335047062,-460.0,0.0002,2]
[374523577,1753335047073,-460.0,0.0002,2]
[374523578,1753335047082,-460.0,0.0002,2]
[374523579,1753335047092,-1037.37,0.0002,2]
[374523580,1753335047101,-460.0,0.0002,2]
[374523581,1753335047110,-955.22,0.0002,2]
[374523582,1753335047120,-460.0,0.0002,2]
[374523583,1753335047130,-460.0,0.0002,2]
[374523584,1753335047140,-460.0,0.0002,2]
[374523585,1753335047150,-1714.75,0.0002,2]
[374523586,1753335047159,-460.0,0.0002,2]
[374523587,1753335047169,-902.54,0.0002,2]
[374523588,1753335047178,-460.0,0.0002,2]
[374523589,1753335047187,-498.23,0.0002,2]
[374523590,1753335047197,-460.0,0.0002,2]
[374523591,1753335047206,-500.0,0.00020021,2]
[374523592,1753335047216,-159.0,0.00020114,2]
[374523593,1753335047225,-159.0,0.00020114,2]
[374523594,1753335047235,-231.16387093,0.00020154,2]
[374523595,1753335047244,-215.88777038,0.00020154,2]
[374523596,1753335047253,-160.0,0.00020154,2]
[374523597,1753335047263,-476.79463412,0.00020154,2]
[374523598,1753335047273,-12624.810388,0.00020154,2]
[374523599,1753335047282,-160.0,0.00020154,2]
[374523600,1753335047292,-214.7213231,0.00020154,2]
[374523601,1753335047301,-526.24749348,0.00020154,2]
[374523602,1753335047311,-840.23756827,0.00020154,2]
[374523603,1753335047320,-160.0,0.00020154,2]
[374523604,1753335047330,-160.0,0.00020154,2]
[374523605,1753335047340,-160.0,0.00020154,2]
[374523606,1753335047350,-160.0,0.00020154,2]
[374523607,1753335047359,-200.993731,0.00020187,2]
[374523608,1753335047369,-460.0,0.00020273,2]
[374523609,1753335047379,-460.0,0.00020273,2]
[374523610,1753335047388,-460.0,0.00020273,2]
[374523611,1753335047398,-460.0,0.00020273,2]
[374523612,1753335047408,-2118.55,0.00020273,2]
[374523613,1753335047417,-460.0,0.00020273,2]
[374523614,1753335047425,-413.82805437,0.00020273,2]
[374523615,1753335047435,-255.94817163,0.00020273,2]
[374523616,1753335047444,-460.0,0.00020273,2]
[374523617,1753335047453,-460.0,0.00020273,2]
[374523618,1753335047462,-460.0,0.00020273,2]
[374523619,1753335047471,-460.0,0.00020273,2]
[374523620,1753335047481,-460.0,0.00020273,2]
[374523621,1753335047490,-1221.43,0.00020273,2]
[374523622,1753335047499,-460.0,0.00020273,2]
[374523623,1753335047508,-460.0,0.00020273,2]
[374523624,1753335047517,-460.0,0.00020273,2]
[374523625,1753335047526,-460.0,0.00020273,2]
[374523626,1753335047535,-460.0,0.00020273,2]
[374523627,1753335047544,-542.71,0.00020273,2]
[374523628,1753335047554,-460.0,0.00020273,2]
[374523629,1753335047564,-460.0,0.00020273,2]
[374523630,1753335047573,-992.07,0.00020273,2]
[374523631,1753335047583,-1240.35,0.00020273,2]
[374523632,1753335047592,-1663.04,0.00020273,2]
[374523633,1753335047602,-460.0,0.00020273,2]
[374523634,1753335047611,-507.84,0.00020273,2]
[374523635,1753335047620,-460.0,0.00020273,2]
[374523636,1753335047632,-460.0,0.00020273,2]
[374523637,1753335047641,-460.0,0.00020273,2]
[374523638,1753335047656,-1077.78,0.00020273,2]
[374523639,1753335047669,-460.0,0.00020273,2]
[374523640,1753335047684,-460.0,0.00020273,2]
[374523641,1753335047697,-460.0,0.00020273,2]
[374523642,1753335047707,-653.62,0.00020273,2]
[374523643,1753335047720,-460.0,0.00020273,2]
[374523644,1753335047732,-1678.08,0.00020273,2]
[374523646,1753335047745,-460.0,0.00020273,2]
[374523648,1753335047757,-460.0,0.00020273,2]
[374523651,1753335047771,-460.0,0.00020273,2]
[374523653,1753335047784,-460.0,0.00020273,2]
[374523655,1753335047796,-829.12,0.00020273,2]
[374523656,1753335047809,-460.0,0.00020273,2]
[374523657,1753335047820,-460.0,0.00020273,2]
[374523658,1753335047833,-1553.75,0.00020273,2]
[374523659,1753335047845,-460.0,0.00020273,2]
[374523660,1753335047856,-460.0,0.00020273,2]
[374523661,1753335047869,-460.0,0.00020273,2]
[374523662,1753335047883,-1037.37,0.00020273,2]
[374523663,1753335047896,-460.0,0.00020273,2]
[374523664,1753335047908,-955.22,0.00020273,2]
[374523665,1753335047920,-460.0,0.00020273,2]
[374523666,1753335047930,-460.0,0.00020273,2]
[374523667,1753335047941,-460.0,0.00020273,2]
[374523668,1753335047954,-1714.75,0.00020273,2]
[374523669,1753335047965,-902.54,0.00020273,2]
[374523670,1753335047978,-460.0,0.00020273,2]
[374523672,1753335047992,-498.23,0.00020273,2]
[374523674,1753335048006,-460.0,0.00020273,2]
[374523675,1753335048020,-470.14431381,0.00020356,2]
[374523676,1753335048034,-1222.36678187,0.00020412,2]
[374523678,1753335048048,-460.0,0.00020547,2]
[374523681,1753335048061,-170.89938585,0.00020547,2]
[374523683,1753335048073,-460.0,0.00020547,2]
[374523685,1753335048084,-2118.55,0.00020547,2]
[374523687,1753335048095,-460.0,0.00020547,2]
[374523689,1753335048106,-460.0,0.00020547,2]
[374523692,1753335048119,-460.0,0.00020547,2]
[374523694,1753335048136,-274.33,0.00020547,2]
[374523696,1753335048149,-1221.43,0.00020547,2]
[374523699,1753335048160,-434.38,0.00020547,2]
[374523701,1753335048172,-460.0,0.00020547,2]
[374523703,1753335048183,-460.0,0.00020547,2]
[374523705,1753335048195,-460.0,0.00020547,2]
[374523708,1753335048207,-542.71,0.00020547,2]
[374523710,1753335048218,-460.0,0.00020547,2]
[374523712,1753335048229,-460.0,0.00020547,2]
[374523714,1753335048239,-992.07,0.00020547,2]
[374523716,1753335048250,-1240.35,0.00020547,2]
[374523718,1753335048262,-1663.04,0.00020547,2]
[374523720,1753335048273,-460.0,0.00020547,2]
[374523723,1753335048284,-507.84,0.00020547,2]
[374523725,1753335048295,-460.0,0.00020547,2]
[374523727,1753335048305,-460.0,0.00020547,2]
[374523729,1753335048317,-460.0,0.00020547,2]
[374523731,1753335048328,-1077.78,0.00020547,2]
[374523733,1753335048339,-460.0,0.00020547,2]
[374523736,1753335048351,-460.0,0.00020547,2]
[374523738,1753335048362,-460.0,0.00020547,2]
[374523740,1753335048375,-653.62,0.00020547,2]
[374523742,1753335048387,-460.0,0.00020547,2]
[374523745,1753335048399,-1678.08,0.00020547,2]
[374523747,1753335048410,-460.0,0.00020547,2]
[374523749,1753335048421,-460.0,0.00020547,2]
[374523751,1753335048432,-185.04,0.00020547,2]
[374523753,1753335048443,-460.0,0.00020547,2]
[374523756,1753335048454,-829.12,0.00020547,2]
[374523758,1753335048464,-460.0,0.00020547,2]
[374523760,1753335048475,-460.0,0.00020547,2]
[374523762,1753335048486,-1553.75,0.00020547,2]
[374523764,1753335048497,-460.0,0.00020547,2]
[374523766,1753335048507,-460.0,0.00020547,2]
[374523769,1753335048518,-472.97764411,0.00020547,2]
[374523771,1753335048529,-460.0,0.00020547,2]
[374523773,1753335048540,-1037.37,0.00020547,2]
[374523775,1753335048551,-460.0,0.00020547,2]
[374523777,1753335048563,-460.0,0.00020547,2]
[374523779,1753335048574,-460.0,0.00020547,2]
[374523781,1753335048586,-955.22,0.00020547,2]
[374523784,1753335048598,-460.0,0.00020547,2]
[374523786,1753335048610,-1714.75,0.00020547,2]
[374523788,1753335048621,-902.54,0.00020547,2]
[374523790,1753335048635,-460.0,0.00020547,2]
[374523792,1753335048647,-498.23,0.00020547,2]
[374523794,1753335048658,-460.0,0.00020547,2]
[374523796,1753335048670,-474.61,0.00020688,2]
[374523799,1753335048682,-460.0,0.00020821,2]
[374523801,1753335048693,-460.0,0.00020821,2]
[374523803,1753335048706,-2118.55,0.00020821,2]
[374523805,1753335048716,-460.0,0.00020821,2]
[374523807,1753335048728,-460.0,0.00020821,2]
[374523809,1753335048739,-383.4748041,0.00020821,2]
[374523812,1753335048750,-1221.43,0.00020821,2]
[374523814,1753335048762,-460.0,0.00020821,2]
[374523816,1753335048774,-460.0,0.00020821,2]
[374523818,1753335048785,-460.0,0.00020821,2]
[374523821,1753335048797,-542.71,0.00020821,2]
[374523823,1753335048810,-460.0,0.00020821,2]
[374523825,1753335048820,-189.78,0.00020821,2]
[374523827,1753335048830,-992.07,0.00020821,2]
[374523829,1753335048839,-1240.35,0.00020821,2]
[374523831,1753335048849,-1663.04,0.00020821,2]
[374523833,1753335048859,-460.0,0.00020821,2]
[374523835,1753335048869,-507.84,0.00020821,2]
[374523837,1753335048881,-460.0,0.00020821,2]
[374523839,1753335048891,-460.0,0.00020821,2]
[374523842,1753335048901,-571.02,0.00020821,2]
[374523844,1753335048913,-1077.78,0.00020821,2]
[374523846,1753335048923,-460.0,0.00020821,2]
[374523848,1753335048933,-460.0,0.00020821,2]
[374523850,1753335048943,-460.0,0.00020821,2]
[374523852,1753335048952,-653.62,0.00020821,2]
[374523854,1753335048962,-460.0,0.00020821,2]
[374523855,1753335048972,-1678.08,0.00020821,2]
[374523858,1753335048985,-460.0,0.00020821,2]
[374523859,1753335048998,-460.0,0.00020821,2]
[374523880,1753335049180,-460.0,0.00020821,2]
[374523882,1753335049193,-829.12,0.00020821,2]
[374523884,1753335049202,-485.66,0.00020821,2]
[374523886,1753335049212,-460.0,0.00020821,2]
[374523888,1753335049222,-1553.75,0.00020821,2]
[374523890,1753335049231,-460.0,0.00020821,2]
[374523892,1753335049242,-583.97218482,0.00020821,2]
[374523894,1753335049252,-1037.37,0.00020821,2]
[374523896,1753335049262,-460.0,0.00020821,2]
[374523898,1753335049272,-460.0,0.00020821,2]
[374523901,1753335049282,-460.0,0.00020821,2]
[374523903,1753335049291,-955.22,0.00020821,2]
[374523904,1753335049300,-460.0,0.00020821,2]
[374523907,1753335049310,-1714.75,0.00020821,2]
[374523908,1753335049320,-902.54,0.00020821,2]
[374523910,1753335049330,-460.0,0.00020821,2]
[374523913,1753335049339,-498.23,0.00020821,2]
[374523915,1753335049350,-460.0,0.00020821,2]
[374523917,1753335049359,-504.273,0.00020833,2]
[374523919,1753335049369,-112.69764058,0.00020859,2]
[374523940,1753335049567,-766.43917421,0.0002,2]
[374523942,1753335049579,-3096.53082579,0.0002,2]
[374523944,1753335049589,-232.71013743,0.00020273,2]
[374523946,1753335049600,-2266.63053229,0.00020273,2]
[374523948,1753335049611,-669.42910937,0.00020273,2]
[374523951,1753335049628,-694.20022091,0.00020273,2]
[374523953,1753335049637,-2962.39977897,0.00020547,2]
[374523955,1753335049651,-900.57022103,0.00020547,2]
[374523957,1753335049660,-3862.97,0.00020821,2]
[374523959,1753335049670,-90.63477287,0.00020859,2]
[374523961,1753335049680,-160.0,0.0002088,2]
[374523963,1753335049689,-2035.0,0.00020887,4]
[374523965,1753335049699,-420.0,0.00020899,2]
[374523967,1753335049708,-247.41904714,0.000209,4]
[374523969,1753335049719,-500.0,0.00020943,2]
[374523971,1753335049728,-500.0,0.00020943,2]
[374523973,1753335049738,-500.0,0.00020943,2]
[374523975,1753335049748,-500.0,0.00020943,2]
[374523977,1753335049757,-309.23767962,0.00020943,2]
[374523979,1753335049766,-158.30842269,0.00020943,2]
[374523981,1753335049776,-158.30983541,0.00020943,2]
[374523983,1753335049786,-158.30497625,0.00020943,2]
[374523985,1753335049795,-233.37265783,0.00020943,2]
[374523987,1753335049804,-500.0,0.00020943,2]
[374523989,1753335049812,-500.0,0.00020943,2]
[374523991,1753335049822,-500.0,0.00020943,2]
[374523993,1753335049831,-500.0,0.00020943,2]
[374523995,1753335049840,-406.32816737,0.00020943,2]
[374523997,1753335049850,-500.98278549,0.00020943,2]
[374523999,1753335049859,-500.0,0.00020943,2]
[374524001,1753335049868,-500.0,0.00020943,2]
[374524003,1753335049879,-500.0,0.00020943,2]
[374524005,1753335049889,-500.0,0.00020943,2]
[374524007,1753335049898,-500.0,0.00020943,2]
[374524009,1753335049907,-500.0,0.00020943,2]
[374524011,1753335049916,-500.0,0.00020943,2]
[374524013,1753335049925,-460.0,0.00021095,2]
[374524015,1753335049935,-460.0,0.00021095,2]
[374524017,1753335049944,-2118.55,0.00021095,2]
[374524019,1753335049953,-460.0,0.00021095,2]
[374524021,1753335049961,-172.81002256,0.00021095,2]
[374524023,1753335049968,-1221.43,0.00021095,2]
[374524025,1753335049976,-460.0,0.00021095,2]
[374524027,1753335049984,-460.0,0.00021095,2]
[374524029,1753335049996,-460.0,0.00021095,2]
[374524031,1753335050004,-542.71,0.00021095,2]
[374524033,1753335050012,-460.0,0.00021095,2]
[374524035,1753335050020,-992.07,0.00021095,2]
[374524037,1753335050028,-1134.77707773,0.00021095,2]
[374524056,1753335050168,-460.0,0.00019178,2]
[374524057,1753335050176,-460.0,0.00019178,2]
[374524059,1753335050184,-460.0,0.00019178,2]
[374524062,1753335050194,-517.29962209,0.00019452,2]
[374524064,1753335050204,-105.57292227,0.00021095,2]
[374524066,1753335050214,-1663.04,0.00021095,2]
[374524068,1753335050222,-460.0,0.00021095,2]
[374524070,1753335050231,-507.84,0.00021095,2]
[374524072,1753335050240,-460.0,0.00021095,2]
[374524074,1753335050251,-460.0,0.00021095,2]
[374524076,1753335050260,-1077.78,0.00021095,2]
[374524078,1753335050269,-460.0,0.00021095,2]
[374524080,1753335050279,-460.0,0.00021095,2]
[374524082,1753335050288,-460.0,0.00021095,2]
[374524084,1753335050297,-653.62,0.00021095,2]
[374524086,1753335050307,-460.0,0.00021095,2]
[374524088,1753335050316,-1678.08,0.00021095,2]
[374524090,1753335050326,-460.0,0.00021095,2]
[374524092,1753335050335,-460.0,0.00021095,2]
[374524094,1753335050345,-460.0,0.00021095,2]
[374524096,1753335050355,-829.12,0.00021095,2]
[374524098,1753335050364,-552.69385365,0.00021095,2]
[374524101,1753335050375,-1553.75,0.00021095,2]
[374524102,1753335050384,-460.0,0.00021095,2]
[374524104,1753335050393,-1037.37,0.00021095,2]
[374524106,1753335050404,-460.0,0.00021095,2]
[374524107,1753335050413,-176.6143568,0.00021095,2]
[374524108,1753335050423,-460.0,0.00021095,2]
[374524109,1753335050432,-955.22,0.00021095,2]
[374524110,1753335050441,-460.0,0.00021095,2]
[374524111,1753335050450,-1714.75,0.00021095,2]
[374524112,1753335050459,-902.54,0.00021095,2]
[374524113,1753335050468,-460.0,0.00021095,2]
[374524114,1753335050477,-498.23,0.00021095,2]
[374524115,1753335050486,-460.0,0.00021095,2]
[374524116,1753335050495,-3862.97,0.00021095,2]
[374524117,1753335050505,-218.95523499,0.00021097,2]
[374524118,1753335050514,-215.0738,0.00021166,2]
[374524119,1753335050523,-5465.89716836,0.00021166,2]
[374524120,1753335050532,-2035.0,0.00021252,4]
[374524121,1753335050541,-969.0,0.00021267,2]
[374524122,1753335050551,-407.0,0.00021267,2]
[374524123,1753335050560,-421.197,0.00021267,2]
[374524124,1753335050569,-648.0,0.00021267,2]
[374524125,1753335050578,-460.0,0.00021369,2]
[374524126,1753335050587,-460.0,0.00021369,2]
[374524127,1753335050596,-2118.55,0.00021369,2]
[374524128,1753335050605,-461.41634321,0.00021369,2]
[374524129,1753335050614,-1221.43,0.00021369,2]
[374524130,1753335050623,-460.0,0.00021369,2]
[374524131,1753335050632,-460.0,0.00021369,2]
[374524132,1753335050641,-460.0,0.00021369,2]
[374524133,1753335050650,-542.71,0.00021369,2]
[374524134,1753335050659,-393.27522131,0.00021369,2]
[374524135,1753335050669,-992.07,0.00021369,2]
[374524136,1753335050678,-1240.35,0.00021369,2]
[374524137,1753335050688,-1663.04,0.00021369,2]
[374524138,1753335050697,-460.0,0.00021369,2]
[374524139,1753335050706,-507.84,0.00021369,2]
[374524140,1753335050717,-460.0,0.00021369,2]
[374524141,1753335050726,-460.0,0.00021369,2]
[374524142,1753335050736,-460.0,0.00021369,2]
[374524143,1753335050745,-1077.78,0.00021369,2]
[374524144,1753335050754,-386.46,0.00021369,2]
[374524145,1753335050763,-460.0,0.00021369,2]
[374524146,1753335050773,-653.62,0.00021369,2]
[374524147,1753335050781,-460.0,0.00021369,2]
[374524148,1753335050790,-1678.08,0.00021369,2]
[374524149,1753335050799,-460.0,0.00021369,2]
[374524150,1753335050809,-464.46,0.00021369,2]
[374524151,1753335050819,-460.0,0.00021369,2]
[374524152,1753335050828,-829.12,0.00021369,2]
[374524153,1753335050837,-1553.75,0.00021369,2]
[374524154,1753335050847,-460.0,0.00021369,2]
[374524155,1753335050856,-1037.37,0.00021369,2]
[374524156,1753335050866,-460.0,0.00021369,2]
[374524157,1753335050877,-460.0,0.00021369,2]
[374524158,1753335050886,-955.22,0.00021369,2]
[374524159,1753335050895,-460.0,0.00021369,2]
[374524160,1753335050905,-1714.75,0.00021369,2]
[374524161,1753335050914,-902.54,0.00021369,2]
[374524162,1753335050923,-460.0,0.00021369,2]
[374524163,1753335050933,-498.23,0.00021369,2]
[374524164,1753335050942,-460.0,0.00021369,2]
[374524165,1753335050952,-3862.97,0.00021369,2]
[374524166,1753335050961,-260.0,0.00021428,2]
[374524167,1753335050971,-500.0,0.00021442,2]
[374524168,1753335050981,-1000.0,0.00021491,2]
[374524169,1753335050993,-888.82134956,0.00021491,2]
[374524170,1753335051003,-1222.36678187,0.00021571,2]
[374524171,1753335051012,-2035.0,0.00021617,4]
[374524172,1753335051021,-9349.19268289,0.00021626,2]
[374524173,1753335051030,-460.0,0.00021643,2]
[374524174,1753335051041,-307.22359751,0.00021643,2]
[374524175,1753335051050,-2118.55,0.00021643,2]
[374524176,1753335051059,-1221.43,0.00021643,2]
[374524177,1753335051069,-321.23880755,0.00021643,2]
[374524178,1753335051078,-460.0,0.00021643,2]
[374524179,1753335051089,-460.0,0.00021643,2]
[374524180,1753335051098,-542.71,0.00021643,2]
[374524181,1753335051107,-992.07,0.00021643,2]
[374524182,1753335051116,-1240.35,0.00021643,2]
[374524183,1753335051125,-1663.04,0.00021643,2]
[374524184,1753335051135,-460.0,0.00021643,2]
[374524185,1753335051144,-507.84,0.00021643,2]
[374524186,1753335051153,-460.0,0.00021643,2]
[374524187,1753335051163,-460.0,0.00021643,2]
[374524188,1753335051172,-460.0,0.00021643,2]
[374524189,1753335051182,-1077.78,0.00021643,2]
[374524190,1753335051191,-460.0,0.00021643,2]
[374524191,1753335051200,-653.62,0.00021643,2]
[374524192,1753335051210,-460.0,0.00021643,2]
[374524193,1753335051219,-1678.08,0.00021643,2]
[374524194,1753335051228,-316.98851064,0.00021643,2]
[374524195,1753335051238,-460.0,0.00021643,2]
[374524196,1753335051247,-829.12,0.00021643,2]
[374524197,1753335051256,-1553.75,0.00021643,2]
[374524198,1753335051265,-460.0,0.00021643,2]
[374524199,1753335051275,-1037.37,0.00021643,2]
[374524200,1753335051284,-460.0,0.00021643,2]
[374524202,1753335051293,-460.0,0.00021643,2]
[374524204,1753335051303,-955.22,0.00021643,2]
[374524205,1753335051312,-460.0,0.00021643,2]
[374524206,1753335051321,-1714.75,0.00021643,2]
[374524207,1753335051330,-902.54,0.00021643,2]
[374524208,1753335051339,-460.0,0.00021643,2]
[374524209,1753335051348,-498.23,0.00021643,2]
[374524210,1753335051358,-460.0,0.00021643,2]
[374524211,1753335051367,-3862.97,0.00021643,2]
[374524212,1753335051378,-77727.6815988,0.00021739,2]
[374524214,1753335051387,-203.33241345,0.0002175,2]
[374524215,1753335051396,-460.0,0.00021917,2]
[374524216,1753335051405,-2118.55,0.00021917,2]
[374524217,1753335051414,-1221.43,0.00021917,2]
[374524218,1753335051423,-302.23,0.00021917,2]
[374524219,1753335051432,-460.0,0.00021917,2]
[374524220,1753335051441,-542.71,0.00021917,2]
[374524221,1753335051451,-992.07,0.00021917,2]
[374524223,1753335051460,-1240.35,0.00021917,2]
[374524225,1753335051469,-1663.04,0.00021917,2]
[374524226,1753335051478,-460.0,0.00021917,2]
[374524227,1753335051487,-507.84,0.00021917,2]
[374524229,1753335051496,-460.0,0.00021917,2]
[374524230,1753335051505,-460.0,0.00021917,2]
[374524231,1753335051515,-460.0,0.00021917,2]
[374524232,1753335051525,-1077.78,0.00021917,2]
[374524233,1753335051534,-460.0,0.00021917,2]
[374524234,1753335051544,-653.62,0.00021917,2]
[374524235,1753335051553,-460.0,0.00021917,2]
[374524236,1753335051562,-1678.08,0.00021917,2]
[374524237,1753335051572,-460.0,0.00021917,2]
[374524238,1753335051582,-829.12,0.00021917,2]
[374524239,1753335051591,-1553.75,0.00021917,2]
[374524240,1753335051600,-460.0,0.00021917,2]
[374524241,1753335051609,-1037.37,0.00021917,2]
[374524242,1753335051619,-460.0,0.00021917,2]
[374524243,1753335051630,-460.0,0.00021917,2]
[374524244,1753335051639,-955.22,0.00021917,2]
[374524245,1753335051648,-500.0,0.00021917,2]
[374524246,1753335051658,-500.0,0.00021917,2]
[374524247,1753335051668,-500.0,0.00021917,2]
[374524248,1753335051678,-500.0,0.00021917,2]
[374524249,1753335051687,-500.0,0.00021917,2]
[374524250,1753335051697,-500.0,0.00021917,2]
[374524251,1753335051706,-500.0,0.00021917,2]
[374524252,1753335051715,-500.0,0.00021917,2]
[374524253,1753335051725,-500.0,0.00021917,2]
[374524254,1753335051734,-500.0,0.00021917,2]
[374524255,1753335051743,-500.0,0.00021917,2]
[374524256,1753335051752,-460.0,0.00021917,2]
[374524257,1753335051762,-1714.75,0.00021917,2]
[374524258,1753335051771,-902.54,0.00021917,2]
[374524259,1753335051781,-460.0,0.00021917,2]
[374524260,1753335051790,-498.23,0.00021917,2]
[374524261,1753335051800,-460.0,0.00021917,2]
[374524262,1753335051809,-3862.97,0.00021917,2]
[374524263,1753335051819,-153.850549,0.00021975,2]
[374524264,1753335051828,-153.850549,0.00021975,2]
[374524265,1753335051837,-360.0,0.00021976,2]